bitfinex-derivatives/quotes_BTCF0:USTF0_20250325
["timestamp","ask_amount","ask_price","bid_price","bid_amount"]
[1742901092539,0.1147309,87150.0,87149.0,0.00017219]
[1742901092726,0.1154509,87150.0,87149.0,0.00089219]
[1742901092931,0.22019075,87150.0,87149.0,0.00017219]
[1742901093137,0.2086509,87150.0,87149.0,0.00017219]
[1742901093842,0.2086509,87150.0,87149.0,0.00117219]
[1742901094030,0.2202264,87150.0,87149.0,0.00217219]
[1742901094735,0.2232264,87150.0,87149.0,0.00117219]
[1742901095130,0.2116509,87150.0,87149.0,0.00117219]
[1742901095733,0.2136509,87150.0,87149.0,0.00017219]
[1742901096539,0.22502744,87150.0,87149.0,0.00017219]
[1742901096744,0.2136509,87150.0,87149.0,0.00017219]
[1742901098941,0.2136509,87150.0,87149.0,0.00093219]
[1742901108854,0.2136509,87150.0,87149.0,0.00017219]
[1742901109246,0.41987518,87150.0,87149.0,0.00017219]
[1742901109548,0.41987518,87150.0,87149.0,0.00097219]
[1742901109750,0.41987518,87150.0,87149.0,0.00017219]
[1742901110348,0.41987518,87150.0,87149.0,0.00089219]
[1742901111555,0.41987518,87150.0,87149.0,0.00017219]
[1742901112650,0.41987518,87150.0,87149.0,0.00089219]
[1742901112856,0.41987518,87150.0,87149.0,0.00017219]
[1742901113154,0.41987518,87150.0,87149.0,0.00097219]
[1742901114152,0.2136509,87150.0,87149.0,0.00017219]
[1742901114546,0.2136509,87150.0,87149.0,0.00089219]
[1742901115045,0.2136509,87150.0,87149.0,0.00017219]
[1742901115247,0.2136509,87150.0,87149.0,0.00089219]
[1742901115447,0.2136509,87150.0,87149.0,0.00017219]
[1742901116151,0.2136509,87150.0,87149.0,0.00089219]
[1742901120250,0.1812509,87150.0,87149.0,0.26089219]
[1742901121048,0.1812509,87150.0,87149.0,0.00089219]
[1742901122459,0.29385354,87150.0,87149.0,0.00089219]
[1742901123854,0.29385354,87150.0,87149.0,0.00017219]
[1742901124160,0.29385354,87150.0,87149.0,0.34562439]
[1742901124361,0.3608,87169.0,87149.0,0.50089219]
[1742901124557,8e-05,87163.0,87159.0,0.0573591]
[1742901124755,0.27507243,87166.0,87165.0,0.1147111]
[1742901124963,0.39074224,87166.0,87165.0,2.1356711]
[1742901125156,0.38918222,87166.0,87165.0,2.1983711]
[1742901125453,0.38918222,87166.0,87165.0,1.81366]
[1742901125661,0.45198222,87166.0,87165.0,1.81366]
[1742901125958,0.45198222,87166.0,87165.0,2.07366]
[1742901126153,0.45198222,87166.0,87165.0,1.82530908]
[1742901126351,0.45498222,87166.0,87165.0,1.82530908]
[1742901126867,0.45498222,87166.0,87165.0,1.94002018]
[1742901128557,0.45698222,87166.0,87165.0,1.81366]
[1742901128762,0.45794223,87166.0,87165.0,0.00096]
[1742901128961,0.1147151,87162.0,87161.0,0.0303]
[1742901129165,0.11575511,87162.0,87161.0,0.0313]
[1742901129349,0.17855511,87162.0,87161.0,0.0313]
[1742901129959,0.17855511,87162.0,87161.0,0.001]
[1742901130165,0.28927511,87162.0,87161.0,0.001]
[1742901130366,0.1147282,87152.0,87151.0,0.0332]
[1742901130660,0.11568821,87152.0,87151.0,0.08446]
[1742901130867,0.21248821,87152.0,87151.0,0.08446]
[1742901131360,0.21248821,87152.0,87151.0,0.1991896]
[1742901131563,0.06756001,87152.0,87151.0,0.4691896]
[1742901131754,0.03476001,87152.0,87151.0,0.4691896]
[1742901131953,0.0338,87152.0,87151.0,0.8299896]
[1742901132150,0.1485282,87152.0,87151.0,0.5599896]
[1742901132456,0.14948821,87152.0,87151.0,0.5599896]
[1742901132858,0.17978821,87152.0,87151.0,0.5599896]
[1742901133060,0.17978821,87152.0,87151.0,0.7999896]
[1742901133262,0.18178821,87152.0,87151.0,0.7999896]
[1742901134666,0.18178821,87152.0,87151.0,0.5599896]
[1742901134960,0.18178821,87152.0,87151.0,2.0599896]
[1742901135157,0.1808282,87152.0,87151.0,2.0599896]
[1742901135363,0.1197282,87152.0,87151.0,2.3299896]
[1742901138275,0.1197282,87152.0,87151.0,2.0599896]
[1742901138475,0.1197282,87152.0,87151.0,2.3399896]
[1742901138972,0.1838282,87152.0,87151.0,2.0599896]
[1742901141163,0.1838282,87152.0,87151.0,2.2999896]
[1742901141473,0.005,87152.0,87151.0,2.2999896]
[1742901141666,0.1197282,87152.0,87151.0,2.2999896]
[1742901141973,0.005,87152.0,87151.0,2.2999896]
[1742901142173,0.1197282,87152.0,87151.0,2.2999896]
[1742901142564,0.005,87152.0,87151.0,2.2999896]
[1742901143273,0.1197282,87152.0,87151.0,2.2999896]
[1742901143777,0.1519282,87152.0,87151.0,2.2999896]
[1742901144072,0.005,87152.0,87151.0,2.2999896]
[1742901144475,0.005,87152.0,87151.0,0.7999896]
[1742901145671,0.1197282,87152.0,87151.0,0.7999896]
[1742901145875,0.12068821,87152.0,87151.0,0.7999896]
[1742901146177,0.12068821,87152.0,87151.0,2.2999896]
[1742901146373,0.1197282,87152.0,87151.0,2.2999896]
[1742901146977,0.005,87152.0,87151.0,2.2999896]
[1742901147979,0.1197282,87152.0,87151.0,2.2999896]
[1742901150180,0.005,87152.0,87151.0,2.2999896]
[1742901153175,0.0373,87152.0,87151.0,2.2999896]
[1742901154174,0.0697,87152.0,87151.0,2.2999896]
[1742901157096,0.0573556,87165.0,87157.0,0.1147217]
[1742901157391,0.145718,87160.0,87157.0,1.0769617]
[1742901157591,0.17270506,87158.0,87157.0,1.0769617]
[1742901157803,0.17270506,87158.0,87157.0,2.6397617]
[1742901158093,8e-05,87160.0,87159.0,0.114719]
[1742901158281,8e-05,87160.0,87159.0,0.688479]
[1742901158682,8e-05,87160.0,87159.0,2.188479]
[1742901159391,0.23704608,87163.0,87162.0,0.1147151]
[1742901159585,0.23704608,87163.0,87162.0,0.6256751]
[1742901159893,0.23704608,87163.0,87162.0,0.6869751]
[1742901160088,0.23804608,87163.0,87162.0,0.6869751]
[1742901160294,0.23804608,87163.0,87162.0,2.1869751]
[1742901160492,0.35175988,87163.0,87162.0,2.1869751]
[1742901160691,0.26894608,87163.0,87162.0,2.1869751]
[1742901160886,0.38365988,87163.0,87162.0,2.1869751]
[1742901161396,0.38565988,87163.0,87162.0,2.1869751]
[1742901161697,0.27094608,87163.0,87162.0,2.1869751]
[1742901161892,0.0649,87163.0,87162.0,2.1869751]
[1742901162197,0.0649,87163.0,87162.0,2.19846599]
[1742901177011,0.0629,87163.0,87162.0,2.19846599]
[1742901177209,0.0649,87163.0,87162.0,2.19846599]
[1742901178000,0.0308,87170.0,87164.0,0.0573561]
[1742901178205,0.0308,87170.0,87169.0,0.4755059]
[1742901178406,0.0308,87170.0,87169.0,0.9965459]
[1742901178609,0.0308,87170.0,87169.0,2.5586459]
[1742901179810,0.0318,87170.0,87169.0,2.5586459]
[1742901180315,0.0348,87170.0,87169.0,2.5586459]
[1742901181617,0.0318,87170.0,87169.0,2.5586459]
[1742901181801,0.0328,87170.0,87169.0,2.5586459]
[1742901182006,0.096,87170.0,87169.0,2.5586459]
[1742901182609,0.096,87170.0,87169.0,2.3186459]
[1742901182909,0.096,87170.0,87169.0,2.0080459]
[1742901183117,0.096,87170.0,87169.0,2.2480459]
[1742901184414,0.096,87170.0,87169.0,2.2801459]
[1742901188120,0.096,87170.0,87169.0,2.5201459]
[1742901189514,0.0338,87170.0,87169.0,2.5201459]
[1742901194417,0.0338,87170.0,87169.0,2.4886459]
[1742901194621,0.002,87170.0,87169.0,2.4565459]
[1742901195725,0.002,87170.0,87169.0,2.5669859]
[1742901195921,0.002,87170.0,87169.0,2.4565459]
[1742901196123,0.002,87170.0,87169.0,2.5669459]
[1742901199522,0.002,87170.0,87169.0,2.77185268]
[1742901202929,0.002,87170.0,87169.0,2.5669459]
[1742901209330,0.002,87170.0,87169.0,2.4565459]
[1742901209537,0.002,87170.0,87169.0,2.5669459]
[1742901213125,0.002,87170.0,87169.0,2.2165459]
[1742901213433,0.002,87170.0,87169.0,0.7165459]
[1742901213434,0.1167045,87170.0,87169.0,0.7165459]
[1742901214131,0.002,87170.0,87169.0,0.7165459]
[1742901214436,0.002,87170.0,87169.0,0.9765459]
[1742901219434,0.0004,87176.0,87175.0,0.114698]
[1742901219635,0.0004,87176.0,87175.0,0.675738]
[1742901219834,0.4181296,87205.0,87183.0,0.1146874]
[1742901219835,0.114677,87191.0,87183.0,0.1146874]
[1742901220144,0.0573367,87194.0,87185.0,0.1146848]
[1742901220145,0.20604608,87186.0,87185.0,0.1146848]
[1742901220433,0.20604608,87186.0,87185.0,0.6456448]
[1742901222939,0.20804608,87186.0,87185.0,0.6456448]
[1742901223736,0.20804608,87186.0,87185.0,1.0177402]
[1742901224338,0.20804608,87186.0,87185.0,1.02621635]
[1742901224535,0.002,87186.0,87185.0,1.02621635]
[1742901227842,0.0004,87192.0,87191.0,0.1146769]
[1742901228034,0.0004,87192.0,87191.0,1.0968369]
[1742901228646,0.24034838,87202.0,87201.0,0.1146638]
[1742901228944,0.24130839,87202.0,87201.0,0.9464238]
[1742901230256,0.35597089,87202.0,87201.0,0.7164238]
[1742901230437,0.35597089,87202.0,87201.0,0.9664238]
[1742901230745,0.35797089,87202.0,87201.0,0.9664238]
[1742901231145,0.35797089,87202.0,87201.0,0.7164238]
[1742901231550,0.35797089,87202.0,87201.0,0.9864238]
[1742901232549,0.11762251,87202.0,87201.0,0.9864238]
[1742901233048,0.14932251,87202.0,87201.0,0.9864238]
[1742901233346,0.00296001,87202.0,87201.0,0.9976494]
[1742901233543,0.11762251,87202.0,87201.0,0.9976494]
[1742901234045,0.11762251,87202.0,87201.0,1.0295494]
[1742901234244,0.00296001,87202.0,87201.0,1.0295494]
[1742901235044,0.03546001,87202.0,87201.0,1.0623494]
[1742901236249,0.06646001,87202.0,87201.0,0.7923494]
[1742901236448,0.06646001,87202.0,87201.0,1.0623494]
[1742901237840,0.0345,87202.0,87201.0,1.0623494]
[1742901238049,0.03554001,87202.0,87201.0,1.0623494]
[1742901238248,0.03354001,87202.0,87201.0,1.0623494]
[1742901239558,0.0325,87202.0,87201.0,1.0623494]
[1742901241958,0.0325,87202.0,87201.0,0.7923494]
[1742901242171,0.0325,87202.0,87201.0,1.0223494]
[1742901242365,0.0637,87202.0,87201.0,1.0223494]
[1742901244064,0.1783625,87202.0,87201.0,1.0223494]
[1742901246168,0.1783625,87202.0,87201.0,0.7923494]
[1742901246368,0.17932251,87202.0,87201.0,0.7923494]
[1742901246563,0.17932251,87202.0,87201.0,1.0723494]
[1742901246872,0.1783625,87202.0,87201.0,0.7923494]
[1742901247169,0.17932251,87202.0,87201.0,0.7923494]
[1742901252669,0.17932251,87202.0,87201.0,0.8323494]
[1742901254173,0.17932251,87202.0,87201.0,0.5523494]
[1742901254369,0.17932251,87202.0,87201.0,0.8223494]
[1742901254564,0.17932251,87202.0,87201.0,1.0823494]
[1742901254760,0.17932251,87202.0,87201.0,0.8223494]
[1742901257073,0.21112251,87202.0,87201.0,0.8223494]
[1742901257271,0.03346001,87202.0,87201.0,1.0723494]
[1742901257462,8e-05,87204.0,87203.0,0.1146611]
[1742901257663,0.00104001,87204.0,87203.0,0.6256211]
[1742901257870,0.00104001,87204.0,87203.0,2.1903211]
[1742901258065,0.1716298,87205.0,87204.0,0.1146598]
[1742901258283,0.1717098,87205.0,87204.0,0.6556198]
[1742901258466,0.1717098,87205.0,87204.0,0.7212198]
[1742901258662,0.17230981,87205.0,87204.0,0.7212198]
[1742901258972,0.17230981,87205.0,87204.0,2.2212198]
[1742901259174,0.1717098,87205.0,87204.0,2.2212198]
[1742901259477,0.1717098,87205.0,87204.0,0.7212198]
[1742901259672,0.17266981,87205.0,87204.0,0.7212198]
[1742901259874,0.00104001,87205.0,87204.0,0.7212198]
[1742901260180,8e-05,87205.0,87204.0,0.7212198]
[1742901260367,0.00112001,87205.0,87204.0,0.7212198]
[1742901260566,0.03372001,87205.0,87204.0,0.7212198]
[1742901260767,0.03268,87205.0,87204.0,0.7212198]
[1742901261566,0.03368,87205.0,87204.0,0.7212198]
[1742901262069,0.03368,87205.0,87204.0,0.4612198]
[1742901262767,0.03368,87205.0,87204.0,0.7412198]
[1742901263678,0.03364001,87205.0,87204.0,0.7412198]
[1742901264069,0.00104001,87205.0,87204.0,0.7412198]
[1742901264777,8e-05,87205.0,87204.0,0.7412198]
[1742901266572,0.00068001,87205.0,87204.0,0.7412198]
[1742901268174,0.03088001,87205.0,87204.0,0.7412198]
[1742901268374,0.03028,87205.0,87204.0,0.7412198]
[1742901268680,0.1449385,87205.0,87204.0,0.4612198]
[1742901268877,0.03124001,87205.0,87204.0,0.7412198]
[1742901269383,0.06254001,87205.0,87204.0,0.7412198]
[1742901269876,0.06158,87205.0,87204.0,0.7412198]
[1742901271882,0.0302,87205.0,87204.0,0.7412198]
[1742901272081,0.0004,87208.0,87207.0,0.1146559]
[1742901272273,0.0004,87208.0,87207.0,0.6456559]
[1742901272472,0.17228553,87208.0,87207.0,0.7095559]
[1742901272682,0.17324554,87208.0,87207.0,0.7095559]
[1742901272882,0.17324554,87208.0,87207.0,0.4595559]
[1742901273083,0.17324554,87208.0,87207.0,0.7395559]
[1742901273287,0.17324554,87208.0,87207.0,0.4595559]
[1742901273481,0.20614554,87208.0,87207.0,0.7195559]
[1742901273880,0.20614554,87208.0,87207.0,0.4595559]
[1742901274084,0.20614554,87208.0,87207.0,0.7295559]
[1742901274388,0.20614554,87208.0,87207.0,0.4595559]
[1742901274583,0.20614554,87208.0,87207.0,0.4195559]
[1742901274885,0.23724554,87208.0,87207.0,0.5795559]
[1742901275087,0.20614554,87208.0,87207.0,0.6102559]
[1742901275578,0.20518553,87208.0,87207.0,0.6102559]
[1742901275780,0.20578554,87208.0,87207.0,0.6102559]
[1742901276087,0.03390001,87208.0,87207.0,0.6102559]
[1742901276273,0.0333,87208.0,87207.0,0.6102559]
[1742901276881,0.03426001,87208.0,87207.0,0.6102559]
[1742901277287,0.0333,87208.0,87207.0,0.6102559]
[1742901280683,0.0004,87208.0,87207.0,0.6102559]
[1742901281078,0.0004,87208.0,87207.0,2.1102559]
[1742901284482,0.0004,87208.0,87207.0,1.9502559]
[1742901284687,0.0333,87208.0,87207.0,1.9502559]
[1742901284889,0.1479546,87208.0,87207.0,0.4195559]
[1742901285189,0.18171461,87208.0,87207.0,0.4195559]
[1742901287090,0.18171461,87208.0,87207.0,0.6495559]
[1742901287289,0.18171461,87208.0,87207.0,0.4195559]
[1742901287682,0.18171461,87208.0,87207.0,0.2725]
[1742901288288,0.18171461,87208.0,87207.0,0.001]
[1742901289088,0.1146677,87198.0,87197.0,0.20490678]
[1742901289276,0.1146677,87198.0,87197.0,0.20562678]
[1742901289480,0.1153877,87198.0,87197.0,0.20562678]
[1742901289682,0.1772877,87198.0,87197.0,0.33204328]
[1742901290684,0.1772877,87198.0,87197.0,0.36274328]
[1742901291291,0.1772877,87198.0,87197.0,0.24807428]
[1742901291585,0.1772877,87198.0,87197.0,0.36274328]
[1742901291786,0.1772877,87198.0,87197.0,0.1578365]
[1742901292293,0.1772877,87198.0,87197.0,0.3978365]
[1742901292483,0.2100877,87198.0,87197.0,0.3978365]
[1742901292684,0.2100877,87198.0,87197.0,0.2931675]
[1742901292892,0.2100877,87198.0,87197.0,0.0431675]
[1742901293792,0.2100877,87198.0,87197.0,0.0124675]
[1742901294178,0.2100877,87198.0,87197.0,0.00072]
[1742901296397,0.2100877,87198.0,87197.0,0.25072]
[1742901296594,0.2100877,87198.0,87197.0,0.00072]
[1742901297590,0.2100877,87198.0,87197.0,0.03282]
[1742901299195,0.2100877,87198.0,87197.0,0.06572]
[1742901300587,0.2100877,87198.0,87197.0,0.30572]
[1742901301191,0.2100877,87198.0,87197.0,0.06572]
[1742901301797,0.2100877,87198.0,87197.0,0.35572]
[1742901301991,0.2100877,87198.0,87197.0,0.06572]
[1742901302896,0.2100877,87198.0,87197.0,0.31572]
[1742901307795,0.2100877,87198.0,87197.0,0.06572]
[1742901309397,0.1146861,87184.0,87177.0,0.1146949]
[1742901309601,0.1720358,87182.0,87181.0,0.5328338]
[1742901309791,0.1720358,87182.0,87181.0,0.6128338]
[1742901309987,0.2030958,87182.0,87181.0,0.6134338]
[1742901310288,0.2023358,87182.0,87181.0,0.6128338]
[1742901310496,0.2023358,87182.0,87181.0,0.6775338]
[1742901311098,0.2023358,87182.0,87181.0,0.6805338]
[1742901311298,0.2023358,87182.0,87181.0,0.68909729]
[1742901312187,0.2023358,87182.0,87181.0,0.69209729]
[1742901312510,0.17203,87184.0,87183.0,0.1146874]
[1742901312687,0.0573409,87188.0,87185.0,0.0573417]
[1742901312891,0.1720231,87188.0,87187.0,0.1146822]
[1742901313089,0.00017209,87190.0,87189.0,0.1146796]
[1742901313295,0.00017209,87190.0,87189.0,0.6873796]
[1742901313493,0.00017209,87190.0,87189.0,0.7194796]
[1742901313700,0.00017209,87190.0,87189.0,2.2194796]
[1742901314198,0.114673,87194.0,87193.0,0.1146743]
[1742901314500,0.1720042,87199.0,87198.0,0.0573318]
[1742901314704,0.1720042,87199.0,87198.0,0.6791318]
[1742901314893,0.1720042,87199.0,87198.0,2.1791318]
[1742901315094,0.1720042,87199.0,87198.0,0.6791318]
[1742901315293,0.1727242,87199.0,87198.0,0.6797318]
[1742901315801,0.1720042,87199.0,87198.0,0.6797318]
[1742901316001,0.18109493,87199.0,87198.0,0.6797318]
[1742901316499,0.18109493,87199.0,87198.0,0.6224]
[1742901316798,0.18181493,87199.0,87198.0,0.3524]
[1742901317202,0.21261493,87199.0,87198.0,0.3524]
[1742901317906,0.21261493,87199.0,87198.0,0.36379548]
[1742901318401,0.21261493,87199.0,87198.0,0.47846318]
[1742901318789,0.2035242,87199.0,87198.0,0.47846318]
[1742901318995,0.34448,87199.0,87198.0,0.73846318]
[1742901323002,0.1727242,87199.0,87198.0,0.73846318]
[1742901325318,0.00072,87199.0,87198.0,0.73846318]
[1742901325511,0.0573326,87200.0,87199.0,0.1719963]
[1742901325711,0.0573326,87200.0,87199.0,0.7126363]
[1742901326007,0.1719977,87200.0,87199.0,0.6593725]
[1742901326198,0.1727177,87200.0,87199.0,0.6593725]
[1742901326404,0.3445446,87200.0,87199.0,0.6593725]
[1742901326804,0.1725469,87200.0,87199.0,0.6593725]
[1742901327112,0.287212,87200.0,87199.0,0.6593725]
[1742901329500,0.318312,87200.0,87199.0,0.6593725]
[1742901329905,0.318312,87200.0,87199.0,0.4467064]
[1742901330113,0.32731537,87200.0,87199.0,0.6867064]
[1742901330415,0.33660096,87200.0,87199.0,0.7167064]
[1742901330614,0.16477406,87200.0,87199.0,0.7167064]
[1742901331303,0.16405406,87200.0,87199.0,0.7167064]
[1742901331922,0.16405406,87200.0,87199.0,0.4467064]
[1742901332217,0.16477406,87200.0,87199.0,0.4467064]
[1742901332608,0.18011751,87200.0,87199.0,0.4467064]
[1742901334112,0.21331751,87200.0,87199.0,0.4467064]
[1742901336605,0.19797406,87200.0,87199.0,0.4467064]
[1742901336814,0.16477406,87200.0,87199.0,0.7267064]
[1742901338517,0.16475873,87200.0,87199.0,0.7267064]
[1742901342409,0.01899363,87200.0,87199.0,0.7267064]
[1742901342617,0.32076416,87206.0,87205.0,0.1146585]
[1742901342924,0.32148416,87206.0,87205.0,2.2060585]
[1742901343115,0.35106416,87206.0,87205.0,0.7688585]
[1742901343318,0.38268416,87206.0,87205.0,0.7688585]
[1742901343715,0.38196416,87206.0,87205.0,0.7688585]
[1742901344424,0.1758572,87206.0,87205.0,0.7688585]
[1742901345323,0.1449572,87206.0,87205.0,0.7688585]
[1742901345515,0.1146572,87206.0,87205.0,0.7688585]
[1742901346830,0.1464572,87206.0,87205.0,0.7688585]
[1742901347736,0.1472572,87206.0,87205.0,0.7688585]
[1742901351328,0.1472572,87206.0,87205.0,0.4080585]
[1742901351523,0.1472572,87206.0,87205.0,0.7688585]
[1742901357225,0.1154572,87206.0,87205.0,0.7688585]
[1742901357425,0.12443086,87206.0,87205.0,1.0188585]
[1742901358034,0.12363086,87206.0,87205.0,1.0188585]
[1742901358235,0.12435086,87206.0,87205.0,1.0188585]
[1742901358421,0.00969366,87206.0,87205.0,1.0188585]
[1742901358625,0.00025209,87207.0,87206.0,0.1146572]
[1742901358828,0.4181113,87233.0,87213.0,0.0573239]
[1742901359140,0.27244838,87224.0,87223.0,0.4754349]
[1742901359430,0.38708188,87224.0,87223.0,0.7260349]
[1742901359626,0.38708188,87224.0,87223.0,1.0809349]
[1742901360529,0.39610487,87224.0,87223.0,1.0809349]
[1742901360734,0.28147137,87224.0,87223.0,1.0809349]
[1742901361036,8e-05,87236.0,87228.0,0.1146283]
[1742901361332,0.0263325,87232.0,87231.0,0.1146243]
[1742901361636,0.0004,87240.0,87239.0,0.1146138]
[1742901361821,0.00156,87240.0,87239.0,1.1473738]
[1742901362026,0.0004,87240.0,87239.0,1.1473738]
[1742901362532,0.0004,87240.0,87239.0,1.1783738]
[1742901362725,0.1150125,87240.0,87239.0,2.6783738]
[1742901363339,0.1150125,87240.0,87239.0,2.68702894]
[1742901363721,0.1150125,87240.0,87239.0,2.40702894]
[1742901364138,0.1150125,87240.0,87239.0,2.64702894]
[1742901364336,0.1453125,87240.0,87239.0,2.40702894]
[1742901364532,0.1453125,87240.0,87239.0,0.90702894]
[1742901364731,0.1464725,87240.0,87239.0,0.93762894]
[1742901367431,0.1464725,87240.0,87239.0,0.93746894]
[1742901367831,0.1464725,87240.0,87239.0,1.10746894]
[1742901368539,0.1161725,87240.0,87239.0,1.10746894]
[1742901368737,0.00156,87240.0,87239.0,1.10746894]
[1742901369039,0.0004,87240.0,87239.0,1.10746894]
[1742901370338,0.0004,87240.0,87239.0,2.60746894]
[1742901370938,0.0004,87240.0,87239.0,2.60758894]
[1742901374136,0.1150125,87240.0,87239.0,2.60766894]
[1742901374342,0.1150125,87240.0,87239.0,0.7036]
[1742901374540,0.1161725,87240.0,87239.0,0.6726]
[1742901374739,0.18785966,87240.0,87239.0,0.6726]
[1742901375140,0.18785966,87240.0,87239.0,0.7872138]
[1742901375454,0.18785966,87240.0,87239.0,0.6726]
[1742901375455,0.19679814,87240.0,87239.0,0.6726]
[1742901375943,0.21234761,87240.0,87239.0,0.6726]
[1742901376148,0.21234761,87240.0,87239.0,0.642]
[1742901376345,0.21234761,87240.0,87239.0,0.362]
[1742901376549,0.20340913,87240.0,87239.0,0.362]
[1742901376754,0.20340913,87240.0,87239.0,0.7166138]
[1742901377642,0.20340913,87240.0,87239.0,0.4766138]
[1742901378252,0.20340913,87240.0,87239.0,0.7266138]
[1742901378455,0.20340913,87240.0,87239.0,0.4766138]
[1742901380249,0.20340913,87240.0,87239.0,0.7166138]
[1742901380450,0.2124332,87240.0,87239.0,0.4766138]
[1742901380647,0.2124332,87240.0,87239.0,0.7566138]
[1742901380846,0.2124332,87240.0,87239.0,0.362]
[1742901381057,0.2124332,87240.0,87239.0,0.4766138]
[1742901381246,0.2124332,87240.0,87239.0,0.7166138]
[1742901381557,0.2124332,87240.0,87239.0,0.7366138]
[1742901381752,0.2124332,87240.0,87239.0,0.5095138]
[1742901381949,0.2124332,87240.0,87239.0,0.7595138]
[1742901383644,0.2124332,87240.0,87239.0,0.5095138]
[1742901383949,0.2124332,87240.0,87239.0,0.3949]
[1742901384450,0.21249814,87240.0,87239.0,0.7795138]
[1742901385257,0.20340913,87240.0,87239.0,0.7795138]
[1742901385546,0.2125473,87240.0,87239.0,0.7795138]
[1742901385851,0.2125473,87240.0,87239.0,0.8111138]
[1742901385852,0.20340913,87240.0,87239.0,0.8111138]
[1742901386051,0.21253127,87240.0,87239.0,0.8111138]
[1742901387155,0.21238243,87240.0,87239.0,0.8111138]
[1742901387745,0.20340913,87240.0,87239.0,0.8111138]
[1742901387948,0.20340913,87240.0,87239.0,0.5411138]
[1742901388450,0.18785966,87240.0,87239.0,0.8011138]
[1742901389350,0.18785966,87240.0,87239.0,0.5411138]
[1742901389754,0.21206331,87240.0,87239.0,0.8111138]
[1742901390256,0.20310238,87240.0,87239.0,0.8111138]
[1742901390455,0.21206333,87240.0,87239.0,0.8111138]
[1742901390752,0.20310238,87240.0,87239.0,0.8111138]
[1742901391253,0.18785966,87240.0,87239.0,0.8111138]
[1742901395355,0.04124716,87240.0,87239.0,0.8111138]
[1742901395558,0.00978716,87240.0,87239.0,0.9911138]
[1742901395762,0.00978716,87240.0,87239.0,1.1021538]
[1742901396060,0.00978716,87240.0,87239.0,2.6021538]
[1742901397257,8e-05,87243.0,87242.0,0.1146099]
[1742901397556,0.20524512,87251.0,87250.0,0.1145994]
[1742901397767,0.20592512,87251.0,87250.0,0.9765594]
[1742901397963,0.0572925,87261.0,87255.0,0.1145928]
[1742901398147,0.1145855,87261.0,87255.0,1.0626328]
[1742901398351,0.0572926,87261.0,87255.0,1.0626328]
[1742901398552,0.0302,87263.0,87255.0,1.0626328]
[1742901398753,0.1145893,87258.0,87255.0,1.0626328]
[1742901398955,0.0874917,87263.0,87255.0,1.0626328]
[1742901399148,0.0572918,87262.0,87255.0,1.0626328]
[1742901399452,8e-05,87258.0,87255.0,1.0626328]
[1742901399964,0.1145896,87258.0,87255.0,1.0626328]
[1742901400262,0.1146696,87258.0,87255.0,1.0626328]
[1742901400765,8e-05,87258.0,87255.0,1.07393114]
[1742901400955,0.114579,87266.0,87255.0,1.07393114]
[1742901401352,0.0572879,87268.0,87255.0,2.57393114]
[1742901401553,0.0325,87271.0,87255.0,2.57393114]
[1742901401753,8e-05,87259.0,87255.0,2.57393114]
[1742901404759,0.0576855,87272.0,87271.0,0.1145718]
[1742901404760,0.0004,87272.0,87271.0,0.1145718]
[1742901404963,0.00160001,87272.0,87271.0,1.1178918]
[1742901405165,0.0004,87272.0,87271.0,1.1817918]
[1742901406065,0.0315,87294.0,87284.0,0.1145547]
[1742901406066,0.1718313,87285.0,87284.0,0.1145547]
[1742901406265,0.1729913,87285.0,87284.0,1.0778747]
[1742901406455,0.1718313,87285.0,87284.0,1.0778747]
[1742901406651,0.057277,87285.0,87284.0,1.1103747]
[1742901406858,0.0887742,87289.0,87287.0,0.1145508]
[1742901407062,0.1149507,87288.0,87287.0,0.6482108]
[1742901407762,0.1432753,87963.0,87287.0,0.6482108]
[1742901407763,0.0572555,87318.0,87299.0,0.1145351]
[1742901408066,0.10124001,87300.0,87299.0,1.4887351]
[1742901408258,0.10116,87300.0,87299.0,3.0523351]
[1742901408455,0.1,87300.0,87299.0,3.0523351]
[1742901409058,0.1,87300.0,87299.0,3.0825351]
[1742901409963,0.10901793,87300.0,87299.0,3.0825351]
[1742901410565,0.1,87300.0,87299.0,3.0825351]
[1742901419071,0.1325,87300.0,87299.0,3.0825351]
[1742901420654,0.1,87300.0,87299.0,3.0825351]
[1742901420859,8e-05,87302.0,87301.0,0.1145324]
[1742901421064,0.0004,87304.0,87303.0,0.1145298]
[1742901421266,0.0004,87304.0,87303.0,0.6984698]
[1742901421466,0.0004,87304.0,87303.0,2.1984698]
[1742901423159,0.0331,87304.0,87303.0,2.1984698]
[1742901423566,0.0004,87304.0,87303.0,2.1984698]
[1742901423771,0.031,87304.0,87303.0,2.1984698]
[1742901424872,0.0633,87304.0,87303.0,2.08394]
[1742901426069,0.0633,87304.0,87303.0,2.19494]
[1742901427271,0.37216626,87334.0,87303.0,2.42494]
[1742901427473,0.0639,87319.0,87316.0,0.3608]
[1742901427772,0.0303,87318.0,87317.0,0.53696]
[1742901427975,0.0322,87319.0,87317.0,2.5982]
[1742901428270,0.0322,87319.0,87317.0,2.6311]
[1742901429170,0.03038,87323.0,87317.0,2.6424984]
[1742901429364,0.0322,87334.0,87317.0,2.6424984]
[1742901429565,0.0638,87334.0,87317.0,2.6424984]
[1742901429874,8e-05,87324.0,87317.0,2.6424984]
[1742901431158,8e-05,87324.0,87317.0,2.6095984]
[1742901431567,8e-05,87324.0,87318.0,0.11088]
[1742901431775,8e-05,87324.0,87318.0,0.65212]
[1742901431972,0.1145825,87324.0,87319.0,0.1448088]
[1742901432175,0.2104036,87323.0,87319.0,0.7170488]
[1742901432378,0.1149075,87320.0,87319.0,0.7170488]
[1742901432564,0.1531519,87323.0,87322.0,0.1145049]
[1742901432765,0.1210519,87323.0,87322.0,0.6456649]
[1742901433068,0.0638,87323.0,87322.0,0.6456649]
[1742901434066,0.0638,87323.0,87322.0,0.6769649]
[1742901434973,0.1783036,87323.0,87322.0,0.6769649]
[1742901435981,0.1783036,87323.0,87322.0,0.7564649]
[1742901436866,0.1794636,87323.0,87322.0,0.7564649]
[1742901437870,0.06496,87323.0,87322.0,0.7564649]
[1742901438175,0.1783036,87323.0,87322.0,0.8184649]
[1742901438375,0.0638,87323.0,87322.0,2.3184649]
[1742901438970,0.1783036,87323.0,87322.0,2.3184649]
[1742901439882,0.1783036,87323.0,87322.0,2.2878649]
[1742901440066,0.1783036,87323.0,87322.0,2.2564649]
[1742901440271,0.1783036,87323.0,87322.0,2.1456649]
[1742901441980,0.1783036,87323.0,87322.0,2.03116]
[1742901443880,0.1145193,87311.0,87310.0,0.4753198]
[1742901444075,0.1145193,87311.0,87310.0,0.7261998]
[1742901444276,0.1145193,87311.0,87310.0,0.7562998]
[1742901444479,0.1478193,87311.0,87310.0,0.7562998]
[1742901445476,0.1478193,87311.0,87310.0,0.76805922]
[1742901445678,0.0333,87311.0,87310.0,0.76805922]
[1742901445882,0.0333,87311.0,87310.0,0.79885922]